bitfinex/quotes_BTCUSD_20220405
["timestamp","ask_amount","ask_price","bid_price","bid_amount"]
[1649184635112,0.05438768,45974.0,45973.0,0.317108]
[1649184635313,0.05438768,45974.0,45973.0,0.323205]
[1649184635415,0.05438768,45974.0,45973.0,0.323202]
[1649184635514,0.05438768,45974.0,45970.0,0.00050438]
[1649184635619,0.05438768,45974.0,45971.0,0.317098]
[1649184635712,0.05438768,45974.0,45972.0,0.317116]
[1649184635813,0.05438768,45974.0,45969.0,0.323205]
[1649184635914,0.05438768,45974.0,45970.0,0.00050438]
[1649184636018,0.054382,45974.0,45970.0,0.00050438]
[1649184636414,0.054379,45973.0,45970.0,0.00050438]
[1649184636613,0.104379,45973.0,45970.0,0.00050438]
[1649184636980,0.104379,45973.0,45969.0,0.323205]
[1649184636981,0.05,45973.0,45969.0,0.323205]
[1649184637181,0.054382,45974.0,45969.0,0.32369346]
[1649184637284,0.054382,45974.0,45969.0,0.50111052]
[1649184638034,0.054382,45974.0,45973.0,0.24607284]
[1649184638134,0.054382,45974.0,45973.0,0.56318084]
[1649184641363,0.05412256,45974.0,45973.0,0.56318084]
[1649184642367,0.10412256,45974.0,45973.0,0.56318084]
[1649184642515,0.15412256,45974.0,45973.0,0.56318084]
[1649184643116,0.15412256,45974.0,45973.0,0.317108]
[1649184643216,0.15412256,45974.0,45971.0,0.323191]
[1649184643320,0.05,45973.0,45971.0,0.323191]
[1649184644320,0.05412256,45974.0,45971.0,0.323191]
[1649184644915,0.00248899,45981.0,45971.0,0.323191]
[1649184645013,0.054367,45978.0,45971.0,0.50112017]
[1649184645117,0.054367,45978.0,45972.0,0.01088]
[1649184645215,0.00248899,45981.0,45973.0,0.49452506]
[1649184645316,0.00248899,45981.0,45974.0,0.17741706]
[1649184645416,0.00248899,45981.0,45975.0,0.50057706]
[1649184645517,0.00248899,45981.0,45976.0,0.17741706]
[1649184645613,0.002,45981.0,45976.0,0.17741706]
[1649184645713,0.002,45981.0,45977.0,0.317078]
[1649184646014,0.1631076,45980.0,45977.0,0.317078]
[1649184647819,0.5131076,45980.0,45978.0,0.323137]
[1649184647930,0.5131076,45980.0,45971.0,0.17741706]
[1649184647931,0.3,45979.0,45971.0,0.17741706]
[1649184648019,0.3,45979.0,45972.0,0.323205]
[1649184648020,0.108773,45978.0,45972.0,0.323205]
[1649184648122,0.05438894,45976.0,45972.0,0.323205]
[1649184648369,0.05438894,45976.0,45973.0,0.323199]
[1649184648470,0.05438894,45976.0,45974.0,0.323191]
[1649184648571,0.05438894,45976.0,45975.0,0.323182]
[1649184648670,2.09390046,45975.0,45970.0,0.17771518]
[1649184648769,1.61946784,45975.0,45971.0,0.317102]
[1649184648868,1.66946784,45975.0,45971.0,0.317102]
[1649184648968,0.163157,45974.0,45971.0,0.317102]
[1649184649171,0.05,45973.0,45971.0,0.317102]
[1649184649671,0.104385,45973.0,45971.0,0.317102]
[1649184652819,0.05,45973.0,45971.0,0.49451906]
[1649184653018,0.054387,45974.0,45971.0,0.49451906]
[1649184654326,0.054387,45974.0,45971.0,0.317102]
[1649184655869,0.054387,45974.0,45970.0,0.00045432]
[1649184656273,0.054387,45974.0,45971.0,0.317123]
[1649184660441,0.054387,45974.0,45971.0,0.31735123]
[1649184660837,0.28209538,45973.0,45971.0,0.317123]
[1649184661140,0.33209538,45973.0,45971.0,0.317123]
[1649184661440,0.33209538,45973.0,45970.0,0.00049441]
[1649184661740,0.33209538,45973.0,45969.0,0.323205]
[1649184661741,0.33209538,45973.0,45969.0,0.31188091]
[1649184662344,0.33209538,45973.0,45967.0,0.17741706]
[1649184662643,0.33209538,45973.0,45968.0,0.17741706]
[1649184662842,0.33209538,45973.0,45967.0,0.17741706]
[1649184663422,0.33209538,45973.0,45966.0,0.47741706]
[1649184663571,0.33209538,45973.0,45967.0,0.17741706]
[1649184663921,0.05,45973.0,45968.0,0.17741706]
[1649184664928,0.29940881,45971.0,45968.0,0.17741706]
[1649184665026,0.40816481,45971.0,45968.0,0.17741706]
[1649184665125,0.158756,45971.0,45967.0,0.17741706]
[1649184665328,0.158756,45971.0,45968.0,0.17741706]
[1649184665430,0.158756,45971.0,45967.0,0.17741706]
[1649184665826,0.158756,45971.0,45968.0,0.17741706]
[1649184669274,0.10877088,45970.0,45968.0,0.17741706]
[1649184669473,0.10877088,45970.0,45967.0,0.00052851]
[1649184669474,0.05,45969.0,45967.0,0.00052851]
[1649184669634,0.05,45969.0,45966.0,0.17741706]
[1649184669723,0.05,45969.0,45965.0,0.17780904]
[1649184669822,0.05,45969.0,45967.0,0.00052851]
[1649184670226,0.25850554,45968.0,45964.0,0.17780904]
[1649184670477,0.05,45969.0,45964.0,0.17780904]
[1649184670781,0.05,45969.0,45965.0,0.3]
[1649184670874,0.054376,45968.0,45966.0,0.17780904]
[1649184670981,0.05,45971.0,45967.0,0.3]
[1649184671122,0.29764,45978.0,45967.0,0.47780904]
[1649184671224,0.29764,45978.0,45967.0,0.50256308]
[1649184671324,0.29764,45978.0,45967.0,0.7243344]
[1649184671426,0.23548355,45977.0,45969.0,0.17780904]
[1649184671571,0.23548355,45977.0,45970.0,0.3]
[1649184671673,0.10874,45978.0,45970.0,0.61052708]
[1649184672073,0.054366,45976.0,45970.0,0.61052708]
[1649184672174,0.054366,45976.0,45970.0,0.31052708]
[1649184672283,0.054366,45976.0,45970.0,0.61052708]
[1649184673072,0.054366,45976.0,45968.0,0.17780904]
[1649184673377,0.054366,45976.0,45967.0,0.17780904]
[1649184673477,0.054366,45976.0,45966.0,0.17780904]
[1649184673723,0.054366,45976.0,45965.0,0.17780904]
[1649184674124,0.23890287,45975.0,45965.0,0.17780904]
[1649184674325,0.05438629,45972.0,45965.0,0.17780904]
[1649184674483,0.054387,45969.0,45965.0,0.17780904]
[1649184674672,0.054387,45969.0,45965.0,0.17833758]
[1649184674773,0.054387,45969.0,45965.0,0.00052854]
[1649184674872,0.054387,45969.0,45965.0,0.17833758]
[1649184675022,0.054387,45969.0,45965.0,0.00052854]
[1649184675324,0.053387,45969.0,45965.0,0.00052854]
[1649184675423,0.053387,45969.0,45965.0,0.17833758]
[1649184675625,0.053387,45969.0,45964.0,0.47780904]
[1649184676525,0.053387,45969.0,45965.0,0.17780904]
[1649184676726,0.05438436,45968.0,45965.0,0.17780904]
[1649184676875,0.05438436,45968.0,45964.0,0.47780904]
[1649184676976,0.05438436,45968.0,45965.0,0.17780904]
[1649184677428,0.05438436,45968.0,45966.0,0.17780904]
[1649184677676,0.05438436,45968.0,45965.0,0.17780904]
[1649184678813,0.06422398,45972.0,45965.0,0.17806146]
[1649184679564,0.054387,45969.0,45965.0,0.17806146]
[1649184679662,0.054387,45969.0,45965.0,0.17780904]
[1649184679764,0.05438436,45968.0,45964.0,0.47780904]
[1649184679865,0.05438436,45968.0,45965.0,0.17780904]
[1649184680165,0.05438436,45968.0,45964.0,0.47780904]
[1649184680614,0.05438436,45968.0,45965.0,0.17780904]
[1649184680813,0.05438436,45968.0,45964.0,0.47780904]
[1649184683032,0.05438436,45968.0,45964.0,0.4783371]
[1649184683183,0.104387,45969.0,45964.0,0.47861935]
[1649184683281,0.104387,45969.0,45964.0,0.4783371]
[1649184683784,0.104387,45969.0,45964.0,0.30052806]
[1649184684034,0.104387,45969.0,45964.0,0.3]
[1649184684286,0.104387,45969.0,45964.0,0.30052805]
[1649184684584,0.104387,45969.0,45964.0,0.47833709]
[1649184684785,0.104387,45969.0,45964.0,0.30052805]
[1649184685235,0.104387,45969.0,45964.0,0.3]
[1649184685438,0.104387,45969.0,45964.0,0.30052805]
[1649184686317,0.05438261,45968.0,45964.0,0.30052805]
[1649184686417,0.05438261,45968.0,45964.0,0.3]
[1649184686666,0.05438261,45968.0,45964.0,0.30052805]
[1649184687616,0.05438261,45968.0,45964.0,0.3]
[1649184687917,0.05438261,45968.0,45964.0,0.30050751]
[1649184688020,0.05438261,45968.0,45964.0,0.30089211]
[1649184688818,0.05438261,45968.0,45964.0,0.3003846]
[1649184688968,0.05438261,45968.0,45964.0,0.3]
[1649184689069,0.05438261,45968.0,45964.0,0.30050751]
[1649184690084,0.05438261,45968.0,45964.0,0.3]
[1649184690232,0.05438261,45968.0,45964.0,0.30050751]
[1649184690589,0.05438261,45968.0,45964.0,0.47831655]
[1649184691238,0.05438261,45968.0,45964.0,0.47780904]
[1649184691439,0.05438261,45968.0,45964.0,0.47830051]
[1649184692392,0.05,45969.0,45964.0,0.47859988]
[1649184692491,0.05,45969.0,45964.0,0.47810841]
[1649184692592,0.054387,45971.0,45964.0,0.47810841]
[1649184692693,0.054387,45971.0,45965.0,0.17780904]
[1649184693846,0.054387,45971.0,45966.0,0.00049146]
[1649184694899,0.054387,45971.0,45965.0,0.17780904]
[1649184695098,0.054387,45971.0,45966.0,0.00049253]
[1649184696047,0.054387,45971.0,45964.0,0.47780904]
[1649184696149,0.054382,45969.0,45964.0,0.47780904]
[1649184696250,0.054382,45969.0,45966.0,0.00049253]
[1649184697242,0.054382,45969.0,45963.0,0.17780904]
[1649184697443,0.054382,45969.0,45965.0,0.00049254]
[1649184698445,0.054382,45969.0,45963.0,0.17780904]
[1649184698699,0.05438363,45968.0,45965.0,0.00049287]
[1649184698801,0.054382,45969.0,45965.0,0.00049287]
[1649184698899,0.104382,45969.0,45965.0,0.00049287]
[1649184698997,0.05,45969.0,45965.0,0.00049287]
[1649184699099,0.05,45969.0,45965.0,0.17830191]
[1649184699198,0.104387,45971.0,45965.0,0.17830191]
[1649184699398,0.054387,45971.0,45965.0,0.17830191]
[1649184699701,0.054387,45971.0,45965.0,0.17780904]
[1649184699952,0.054387,45971.0,45966.0,0.00049286]
[1649184700831,0.054387,45971.0,45965.0,0.17780904]
[1649184701077,0.054387,45971.0,45966.0,0.00049286]
[1649184701175,0.054383,45969.0,45966.0,0.00049286]
[1649184701376,0.104387,45971.0,45966.0,0.30049286]
[1649184701879,0.054387,45971.0,45966.0,0.30049286]
[1649184702029,0.054387,45971.0,45966.0,0.3]
[1649184702279,0.054387,45971.0,45966.0,0.30049242]
[1649184702529,0.054387,45971.0,45966.0,0.00049242]
[1649184703232,0.054387,45971.0,45965.0,0.17780904]
[1649184703434,0.054382,45969.0,45965.0,0.17780904]
[1649184703531,0.054382,45969.0,45966.0,0.00049242]
[1649184704488,0.054382,45969.0,45965.0,0.17780904]
[1649184704689,0.054382,45969.0,45965.0,0.17830147]
[1649184704891,0.104387,45971.0,45966.0,0.3]
[1649184704990,0.054387,45971.0,45966.0,0.3]
[1649184705193,0.054387,45971.0,45966.0,0.47780904]
[1649184705292,0.054387,45971.0,45966.0,0.3]
[1649184705844,0.054387,45971.0,45966.0,0.30049245]
[1649184706094,0.054387,45971.0,45966.0,0.30297421]
[1649184706341,0.10877116,45970.0,45966.0,0.30297421]
[1649184706445,0.05,45969.0,45966.0,0.00297421]
[1649184706543,0.054386,45968.0,45966.0,0.00297421]
[1649184706845,0.054386,45968.0,45966.0,0.00248176]
[1649184707141,0.10877135,45968.0,45966.0,0.00248176]
[1649184707544,0.10870014,45968.0,45966.0,0.00248176]
[1649184708873,0.49778175,45978.0,45973.0,0.08791493]
[1649184709175,0.01088,45977.0,45973.0,0.08791493]
[1649184709675,0.054385,45975.0,45973.0,0.08791493]
[1649184710126,0.27981949,45975.0,45973.0,0.08791493]
[1649184710226,0.158764,45974.0,45973.0,0.08791493]
[1649184712069,0.05,45974.0,45973.0,0.08791493]
[1649184712269,0.21315091,45975.0,45973.0,0.08791493]
[1649184716303,1.41315091,45975.0,45968.0,0.00052804]
[1649184716401,0.01123579,45974.0,45968.0,0.00052804]
[1649184716500,0.10879546,45972.0,45963.0,0.17780904]
[1649184716599,0.0544,45971.0,45963.0,0.17780904]
[1649184716701,0.08743062,45971.0,45968.0,0.00052804]
[1649184716799,0.08743062,45971.0,45962.0,0.17780904]
[1649184716899,1.29833711,45968.0,45962.0,0.17780904]
[1649184716999,1.34833711,45968.0,45962.0,0.17780904]
[1649184717901,0.10440077,45968.0,45962.0,0.17780904]
[1649184718603,0.108802,45967.0,45962.0,0.17780904]
[1649184718701,0.25152553,45965.0,45962.0,0.17780904]
[1649184718899,0.30152553,45965.0,45962.0,0.17780904]
[1649184719100,0.48139393,45965.0,45962.0,0.17780904]
[1649184719200,0.48139393,45965.0,45961.0,0.17769134]
[1649184719201,0.45,45964.0,45961.0,0.17769134]
[1649184719303,0.10880739,45963.0,45957.0,0.22177132]
[1649184719498,0.15880739,45963.0,45955.0,0.22177132]
[1649184719591,0.22254739,45963.0,45955.0,0.22177132]
[1649184719692,0.22254739,45963.0,45952.0,0.26612559]
[1649184719791,0.22254739,45963.0,45953.0,0.22214208]
[1649184719888,0.054405,45962.0,45953.0,0.22214208]
[1649184719992,0.108833,45960.0,45953.0,0.22214208]
[1649184720089,0.03303586,45959.0,45952.0,0.22214208]
[1649184720191,0.08303586,45959.0,45951.0,0.51243991]
[1649184720291,0.24628451,45959.0,45951.0,0.50155991]
[1649184720493,0.24628451,45959.0,45951.0,0.27941783]
[1649184720890,0.054415,45957.0,45951.0,0.27941783]
[1649184720989,0.05441422,45956.0,45951.0,0.27941783]
[1649184721199,0.163255,45955.0,45951.0,0.27941783]
[1649184721397,0.054417,45954.0,45951.0,0.27941783]
[1649184721494,0.16325025,45954.0,45951.0,0.27941783]
[1649184721595,0.16325025,45954.0,45951.0,0.27994597]
[1649184721895,0.17413025,45954.0,45951.0,0.27994597]
[1649184722343,0.16913025,45954.0,45951.0,0.27994597]
[1649184722545,0.16913025,45954.0,45951.0,0.27941783]
[1649184723252,0.054417,45953.0,45951.0,0.27941783]
[1649184723453,0.054417,45953.0,45951.0,0.24616439]
[1649184725156,0.054417,45953.0,45947.0,0.3]
[1649184725260,0.054417,45953.0,45946.0,3.31520876]
[1649184725361,0.05440747,45951.0,45946.0,3.09306668]
[1649184725462,0.054408,45950.0,45946.0,3.09306668]
[1649184726266,0.054408,45950.0,45947.0,0.3]
[1649184726365,0.054408,45950.0,45946.0,3.40999117]
[1649184726613,0.054408,45950.0,45946.0,0.31692449]
[1649184726713,0.05537875,45950.0,45946.0,0.31692449]
[1649184727275,0.05537875,45950.0,45946.0,0.31639678]
[1649184727376,0.054408,45950.0,45946.0,0.31639678]
[1649184727477,0.054408,45950.0,45946.0,0.31692449]
[1649184728480,0.054408,45950.0,45946.0,0.31639678]
[1649184728682,0.054408,45950.0,45946.0,0.31692449]
[1649184729785,0.054408,45950.0,45946.0,0.31639678]
[1649184729882,0.054408,45950.0,45946.0,0.31691381]
[1649184730634,0.01088,45956.0,45947.0,0.00044205]
[1649184730809,0.7701,45961.0,45948.0,0.17765993]
[1649184730894,0.7701,45961.0,45949.0,0.3]
[1649184730994,0.7701,45961.0,45957.0,0.24193301]
[1649184731196,0.7701,45961.0,45958.0,0.3]
[1649184731312,0.01088,45967.0,45958.0,0.3]
[1649184731494,0.01088,45972.0,45958.0,0.3]
[1649184731596,0.01088,45972.0,45963.0,0.28189434]
[1649184731897,0.01088,45972.0,45964.0,0.00041424]
[1649184732096,0.31828633,45972.0,45964.0,0.00041424]
[1649184732246,0.31828633,45972.0,45963.0,0.28189434]
[1649184732399,0.31828633,45972.0,45966.0,0.00049598]
[1649184732400,0.05438276,45968.0,45966.0,0.00049598]
[1649184733397,0.05438276,45968.0,45963.0,0.28189434]
[1649184733599,0.05438276,45968.0,45965.0,0.00047119]
[1649184734523,0.05438276,45968.0,45964.0,0.3]
[1649184734623,0.05438276,45968.0,45963.0,0.28189434]
[1649184734724,0.05438276,45968.0,45964.0,0.00045468]
[1649184734825,0.28316891,45968.0,45964.0,0.00045468]
[1649184735125,0.05438276,45968.0,45964.0,0.00045468]
[1649184735429,0.16315576,45968.0,45964.0,0.00045468]
[1649184735829,0.16315576,45968.0,45963.0,0.28189434]
[1649184735928,0.16315576,45968.0,45964.0,0.00045468]
[1649184736179,0.41989055,45968.0,45964.0,0.00045468]
[1649184736278,0.16315576,45968.0,45964.0,0.00045468]
[1649184736382,0.21754376,45968.0,45964.0,0.00045468]
[1649184736931,0.21754376,45968.0,45963.0,0.28189434]
[1649184737130,0.21754376,45968.0,45964.0,0.00045759]
[1649184738130,0.21754376,45968.0,45963.0,0.28189434]
[1649184738337,0.21754376,45968.0,45964.0,0.00046023]
[1649184738634,0.10877076,45968.0,45964.0,0.00046023]
[1649184738734,0.054385,45967.0,45964.0,0.00046023]
[1649184738836,0.104385,45967.0,45964.0,0.00046023]
[1649184738958,0.01134014,45973.0,45970.0,0.31570698]
[1649184739036,0.01134014,45973.0,45970.0,0.3162829]
[1649184739140,0.00046014,45973.0,45970.0,0.3162829]
[1649184739543,0.01087,45978.0,45970.0,0.3162829]
[1649184739739,0.01087,45978.0,45970.0,0.31570698]
[1649184739845,0.00046016,45974.0,45970.0,0.31570698]
[1649184739937,0.00046016,45974.0,45972.0,0.26506239]
[1649184740692,0.01087,45978.0,45972.0,0.26506239]
[1649184740891,0.00046066,45975.0,45972.0,0.26506239]
[1649184741842,0.004,45979.0,45972.0,0.26506239]
[1649184742079,0.00046066,45976.0,45972.0,0.26506239]
[1649184743032,0.004,45979.0,45972.0,0.26506239]
[1649184743233,0.004,45979.0,45971.0,0.24751161]
[1649184743334,0.00046065,45976.0,45971.0,0.24751161]
[1649184744284,0.004,45979.0,45972.0,0.29234161]
[1649184744385,0.004,45979.0,45971.0,0.24751161]
[1649184744489,0.00046095,45976.0,45971.0,0.24751161]
[1649184745488,0.054372,45978.0,45971.0,0.24751161]
[1649184745729,0.00046089,45976.0,45971.0,0.24751161]
[1649184746681,0.054372,45978.0,45971.0,0.24751161]
[1649184746881,0.00046089,45976.0,45971.0,0.24751161]
[1649184747834,0.054372,45978.0,45971.0,0.24751161]
[1649184748035,0.00046047,45976.0,45971.0,0.24751161]
[1649184749037,0.054372,45978.0,45971.0,0.24751161]
[1649184749338,0.0004604,45976.0,45971.0,0.24751161]
[1649184750240,0.054372,45978.0,45971.0,0.24751161]
[1649184750542,0.0004604,45976.0,45971.0,0.24751161]
[1649184751545,0.054372,45978.0,45971.0,0.24751161]
[1649184751741,0.0004605,45976.0,45971.0,0.24751161]
[1649184752696,0.054372,45978.0,45971.0,0.24751161]
[1649184752945,0.00046058,45976.0,45971.0,0.24751161]
[1649184753884,0.054372,45978.0,45971.0,0.24751161]
[1649184754085,0.00554008,45975.0,45971.0,0.24751161]
[1649184755341,0.00600065,45975.0,45971.0,0.24751161]
[1649184756239,0.00554008,45975.0,45971.0,0.24751161]
[1649184756440,0.00600064,45975.0,45971.0,0.24751161]
[1649184757378,0.00600064,45975.0,45971.0,0.24736885]
[1649184757480,0.00554008,45975.0,45971.0,0.24736885]
[1649184757682,0.00600064,45975.0,45971.0,0.24736885]
[1649184758631,0.00554008,45975.0,45971.0,0.24736885]
[1649184758879,0.00600064,45975.0,45971.0,0.24736885]
[1649184759837,0.00554008,45975.0,45971.0,0.24736885]
[1649184760086,0.00600064,45975.0,45971.0,0.24736885]
[1649184760542,0.00600064,45975.0,45971.0,0.24782325]
[1649184760638,0.00600064,45975.0,45972.0,0.02475081]
[1649184760971,0.00600064,45975.0,45971.0,0.24782325]
[1649184761072,0.00554008,45975.0,45971.0,0.24782325]
[1649184761272,0.00554008,45975.0,45971.0,0.24736885]
[1649184761582,0.00554008,45975.0,45971.0,0.25877661]
[1649184762173,0.00554008,45975.0,45971.0,0.25824885]
[1649184762477,0.00600064,45975.0,45971.0,0.25824885]
[1649184763478,0.00554008,45975.0,45971.0,0.25824885]
[1649184763680,0.00600064,45975.0,45971.0,0.25824885]
[1649184764679,0.00554008,45975.0,45971.0,0.25824885]
[1649184764881,0.00600064,45975.0,45971.0,0.25824885]
[1649184765884,0.00554008,45975.0,45971.0,0.25824885]
[1649184766081,0.00600064,45975.0,45971.0,0.25824885]
[1649184767033,0.00554008,45975.0,45971.0,0.25824885]
[1649184767283,0.00600064,45975.0,45971.0,0.25824885]
[1649184768234,0.00554008,45975.0,45971.0,0.25824885]
[1649184768334,0.00554008,45975.0,45971.0,0.25873091]
[1649184768539,0.00600064,45975.0,45971.0,0.25873091]
[1649184768739,0.00046056,45975.0,45971.0,0.25873091]
[1649184768887,0.65996129,45985.0,45982.0,0.16669208]
[1649184768991,0.056368,45985.0,45982.0,0.16669208]
[1649184769087,0.106368,45985.0,45982.0,0.16669208]
[1649184769586,0.056368,45985.0,45982.0,0.16669208]
[1649184769690,0.106368,45985.0,45982.0,0.16669208]
[1649184769788,0.056368,45985.0,45982.0,0.16669208]
[1649184769886,0.106368,45985.0,45982.0,0.16669208]
[1649184770090,0.34235249,45985.0,45982.0,0.16669208]
[1649184770190,0.05836453,45984.0,45982.0,0.16669208]
[1649184770346,0.27147064,45984.0,45982.0,0.16669208]
[1649184770441,1.46418077,45983.0,45982.0,0.16669208]
[1649184770643,1.51418077,45983.0,45982.0,0.16669208]
[1649184770949,1.51418077,45983.0,45980.0,0.00026323]
[1649184771045,0.3,45982.0,45980.0,0.00026323]
[1649184771574,0.3,45982.0,45971.0,0.01088]
[1649184771647,0.108776,45979.0,45971.0,0.01088]
[1649184771743,0.05438702,45977.0,45971.0,0.01088]
[1649184772011,0.10438702,45977.0,45971.0,0.01088]
[1649184774015,0.10438702,45977.0,45970.0,0.32658698]
[1649184774316,0.054391,45975.0,45970.0,0.32658698]
[1649184774416,0.10878118,45974.0,45970.0,0.32658698]
[1649184774516,0.16317318,45974.0,45971.0,0.00052755]
[1649184774715,0.05,45973.0,45971.0,0.00052755]
[1649184775218,0.05439052,45972.0,45971.0,0.00052755]
[1649184775515,0.05439052,45972.0,45970.0,0.32658698]
[1649184777590,0.05439052,45972.0,45970.0,0.31570698]
[1649184777790,0.26043084,45971.0,45970.0,0.31570698]
[1649184777989,0.31043084,45971.0,45970.0,0.31570698]
[1649184778290,0.05,45971.0,45970.0,0.31570698]
[1649184778392,0.05439052,45972.0,45970.0,0.31570698]
[1649184779509,0.05,45973.0,45970.0,0.31570698]
[1649184779658,0.05,45973.0,45970.0,0.31608206]
[1649184779764,0.10437702,45976.0,45972.0,0.30752169]
[1649184780459,0.10437702,45976.0,45972.0,0.30802952]
[1649184781462,0.10437702,45976.0,45972.0,0.30752169]
[1649184781658,0.10437702,45976.0,45972.0,0.30802952]
[1649184782408,0.37154685,45976.0,45972.0,0.30802952]
[1649184782612,0.10437702,45976.0,45972.0,0.30802952]
[1649184782710,0.10437702,45976.0,45972.0,0.30752169]
[1649184782912,0.10437702,45976.0,45972.0,0.30801448]
[1649184783742,0.35217133,45976.0,45972.0,0.30801448]
[1649184783841,0.35217133,45976.0,45970.0,0.31570698]
[1649184784042,0.35217133,45976.0,45972.0,0.00049279]
[1649184784896,0.10437702,45976.0,45972.0,0.00049279]
[1649184785096,0.10437702,45976.0,45970.0,0.31570698]
[1649184785197,0.10437702,45976.0,45970.0,0.49315818]
[1649184785294,0.10437702,45976.0,45972.0,0.00049279]
[1649184785898,0.2409703,45973.0,45972.0,0.00049279]
[1649184786096,0.2909703,45973.0,45972.0,0.00049279]
[1649184786299,0.2909703,45973.0,45970.0,0.31570698]
[1649184787105,0.323228,45972.0,45970.0,0.31570698]
[1649184787203,0.497296,45972.0,45970.0,0.31570698]
[1649184787304,0.8,45970.0,45962.0,0.1774512]
[1649184787402,0.8,45970.0,45961.0,0.1774512]
[1649184787403,0.90881322,45970.0,45961.0,0.1774512]
[1649184787505,0.0437,45969.0,45959.0,0.1724512]
[1649184787609,1.33822162,45968.0,45959.0,0.1724512]
[1649184787802,0.108814,45967.0,45959.0,0.1724512]
[1649184788001,0.158814,45967.0,45959.0,0.1724512]
[1649184788104,0.158814,45967.0,45960.0,0.28134758]
[1649184788301,0.158812,45967.0,45960.0,0.28134758]
[1649184788404,0.169692,45967.0,45960.0,0.28134758]
[1649184788603,0.08743755,45966.0,45960.0,0.28134758]
[1649184788704,0.05440598,45965.0,45960.0,0.28134758]
[1649184788805,0.10440598,45965.0,45960.0,0.28134758]
[1649184789059,0.108813,45964.0,45961.0,0.00051189]
[1649184789255,0.15881041,45963.0,45961.0,0.00051189]
[1649184789907,0.15881041,45963.0,45955.0,0.3]
[1649184790009,0.054405,45961.0,45954.0,0.45468355]
[1649184790207,0.10881,45962.0,45960.0,0.00029731]
[1649184790310,0.054405,45961.0,45960.0,0.00029731]
[1649184790508,0.15881,45962.0,45960.0,0.00029731]
[1649184790509,0.05,45962.0,45960.0,0.00029731]
[1649184790746,0.01088,45969.0,45960.0,0.00029731]
[1649184790996,0.06088,45969.0,45960.0,0.00029731]
[1649184791201,0.06088,45969.0,45958.0,0.3]
[1649184791398,0.06088,45969.0,45962.0,0.00029729]
[1649184791746,0.06088,45969.0,45963.0,0.26334249]
[1649184792146,0.01088,45969.0,45963.0,0.26334249]
[1649184792247,0.01088,45970.0,45963.0,0.26334249]
[1649184792547,0.01088,45970.0,45964.0,0.00052677]
[1649184793598,0.01088,45970.0,45963.0,0.26334249]
[1649184793799,0.01088,45970.0,45965.0,0.00051554]
[1649184794744,0.01088,45970.0,45963.0,0.26334249]
[1649184794947,0.01088,45970.0,45965.0,0.00051554]
[1649184795950,0.01088,45970.0,45963.0,0.26334249]
[1649184796195,0.01088,45970.0,45965.0,0.00051554]
[1649184797198,0.01088,45970.0,45963.0,0.26334249]
[1649184797398,0.01088,45970.0,45965.0,0.00048955]
[1649184798336,0.01088,45970.0,45963.0,0.26334249]
[1649184798587,0.01088,45970.0,45965.0,0.00048955]
[1649184798989,1.63247719,45972.0,45971.0,0.130532]
[1649184800396,1.58247719,45972.0,45971.0,0.130532]
[1649184800499,0.1,45972.0,45971.0,0.130532]
[1649184800597,0.054386,45974.0,45971.0,0.130532]
[1649184800696,0.054376,45978.0,45971.0,0.13127309]
[1649184801095,0.054376,45978.0,45971.0,0.130532]
[1649184801497,0.25901,45976.0,45972.0,0.27134907]
[1649184801697,0.054376,45978.0,45972.0,0.27134907]
[1649184801799,0.104376,45978.0,45972.0,0.27134907]
[1649184801897,0.054376,45978.0,45972.0,0.27134907]
[1649184802002,0.05,45977.0,45971.0,0.130532]
[1649184802198,0.05,45977.0,45973.0,0.00049125]
[1649184802298,0.108766,45976.0,45973.0,0.00049125]
[1649184802397,0.158766,45976.0,45973.0,0.00049125]
[1649184803003,0.26678734,45975.0,45973.0,0.00049125]
[1649184803200,0.26678734,45975.0,45971.0,0.130532]
[1649184803301,0.37117734,45975.0,45971.0,0.130532]
[1649184803399,0.37117734,45975.0,45972.0,0.00049125]
[1649184804352,0.37117734,45975.0,45971.0,0.130532]
[1649184804604,0.37117734,45975.0,45971.0,0.13102311]
[1649184805552,0.37117734,45975.0,45971.0,0.130532]
[1649184805784,0.38205734,45975.0,45971.0,0.13102311]
[1649184806783,0.38205734,45975.0,45971.0,0.130532]
[1649184806982,0.38205734,45975.0,45971.0,0.13102311]
[1649184807334,0.054394,45974.0,45971.0,0.13102311]
[1649184807435,0.10878658,45974.0,45971.0,0.13102311]
[1649184807639,0.10439258,45974.0,45971.0,0.13102311]
[1649184807737,0.15877458,45974.0,45971.0,0.13102311]
[1649184808136,0.15877458,45974.0,45971.0,0.130532]
[1649184808339,0.10439258,45974.0,45971.0,0.130532]
[1649184808595,0.05439258,45974.0,45971.0,0.130532]
[1649184808687,0.05,45973.0,45971.0,0.130532]
[1649184808786,0.05439258,45974.0,45971.0,0.130532]
[1649184810537,0.05,45975.0,45971.0,0.130532]
[1649184810642,0.05,45975.0,45972.0,0.3]
[1649184810737,0.05,45976.0,45972.0,0.3]
[1649184810839,0.01087,45978.0,45972.0,0.3]
[1649184810945,0.3483,45979.0,45972.0,0.3]
[1649184811786,0.3483,45979.0,45973.0,0.00047356]
[1649184811885,0.05437399,45977.0,45973.0,0.00047356]
[1649184812839,0.108774,45976.0,45971.0,0.130532]
[1649184812940,0.16316065,45975.0,45971.0,0.130532]
[1649184813038,0.16316065,45975.0,45973.0,0.00047356]
[1649184813994,0.16316065,45975.0,45971.0,0.130532]
[1649184814195,0.16316065,45975.0,45972.0,0.00047357]
[1649184815243,0.16316065,45975.0,45971.0,0.130532]
[1649184815450,0.16316065,45975.0,45971.0,0.13099049]
[1649184816295,0.21755165,45975.0,45971.0,0.13099049]
[1649184816398,0.21755165,45975.0,45971.0,0.130532]
[1649184816598,0.21755165,45975.0,45971.0,0.13099049]
[1649184817587,0.21755165,45975.0,45971.0,0.130532]
[1649184818996,0.21755165,45975.0,45971.0,0.13099198]
[1649184820782,0.21755165,45975.0,45971.0,0.13079469]
[1649184821226,0.21755165,45975.0,45971.0,0.130532]
[1649184821429,0.16316065,45975.0,45971.0,0.13079469]
[1649184821529,0.054385,45974.0,45971.0,0.13116795]
[1649184821628,0.054385,45974.0,45971.0,0.13079469]
[1649184821928,0.104387,45975.0,45971.0,0.13079469]
[1649184822427,0.05,45975.0,45971.0,0.130532]
[1649184822578,0.05,45976.0,45971.0,0.130532]
[1649184822682,0.05,45976.0,45972.0,0.3]
[1649184822780,0.05,45978.0,45975.0,0.233805]
[1649184824784,0.1499,45979.0,45975.0,0.233805]